Cogmind - Beta 9.2 @@@ ROGUE MODE // 2019.11.12 @ 21:26:26 Player: Lumi Result: Destroyed by as-96850 with Assembled Rifle Performance ------------- Evolutions (0) 0 Regions Visited (2) 400 Robots Destroyed (8) 40 Value Destroyed (139) 139 Prototype IDs (0) 0 Alien Tech Used (0) 0 Bonus (0) 0 TOTAL SCORE: 579 Bonus ------- None Cogmind --------- Core Integrity 0/250 Matter 191/300 Energy 100/100 System Corruption 0% Temperature Cool (0) Movement Walking (120) Location -10/Mines Parts ------- > --- POWER (1) -------- (None) > --- PROPULSION (2) --- Aluminum Leg > --- UTILITY (2) ------ Small Storage Unit Small Storage Unit > --- WEAPON (2) ------- (None) > --- INVENTORY (8) ---- Ion Engine Wheel Medium Matter Pod (0) Medium Matter Pod (0) Peak State ------------ > --- POWER ------------ Light Nuclear Core > --- PROPULSION ------- Aluminum Leg Aluminum Leg > --- UTILITY ---------- Small Storage Unit Small Storage Unit > --- WEAPON ----------- Medium Laser > --- INVENTORY -------- Ion Engine Wheel Medium Matter Pod Medium Matter Pod [Rating: 8] Favorites ----------- Power Ion Engine Engine Ion Engine Power Core Light Nuclear Core Propulsion Aluminum Leg Leg Aluminum Leg Utility Small Storage Unit Device Sensor Array Storage Small Storage Unit Weapon Assault Rifle Energy Gun Medium Laser Ballistic Gun Assault Rifle Launcher Grenade Launcher Build | -11 -10 -10 ------- Run | Scr Mat Min Slots Evolved . | . . . Power . | . . . Propulsion . | . . . Utility . | . . . Weapon . | . . . Parts Attached 15 | 6 4 5 Power 2 | 1 . 1 Engine 1 | 1 . . Core 1 | . . 1 Reactor . | . . . Propulsion 4 | 2 1 1 Treads . | . . . Leg 4 | 2 1 1 Wheel . | . . . Hover . | . . . Flight . | . . . Utility 5 | 1 3 1 Device 1 | . 1 . Storage 4 | 1 2 1 Processor . | . . . Hackware . | . . . Protection . | . . . Artifact . | . . . Weapon 4 | 2 . 2 Energy Gun 2 | 1 . 1 Energy Cannon . | . . . Ballistic Gun 1 | 1 . . Ballistic Cannon . | . . . Launcher 1 | . . 1 Special Weapon . | . . . Impact Weapon . | . . . Slashing Weapon . | . . . Piercing Weapon . | . . . Special Melee Weapon . | . . . Unidentified Prototypes . | . . . Parts Lost 6 | . . 6 Power 1 | . . 1 Propulsion 2 | . . 2 Utility . | . . . Weapon 3 | . . 3 Highest Loss Streak 5 | . . 5 Average Slot Usage (%) 94 | . 95 90 Engine 13 | . 14 12 Leg 27 | . 28 27 Storage 24 | . 23 28 Energy Gun 12 | . 14 7 Ballistic Gun 13 | . 14 10 Naked Turns . | . . . Heaviest Build 17 | 13 17 17 Greatest Support 20 | 20 20 20 Greatest Overweight (x) 4 | 4 . 1 Average Overweight (x) . | 1 . . Largest Inventory Capacity 8 | 6 8 8 Average Capacity 7 | 5 7 7 Most Carried 8 | 4 8 7 Average Carried 5 | 2 6 6 Final Capacity 8 | 6 8 8 Final Carried 7 | 4 7 4 Class Distribution -------------------- 100% | Mutant Dominant Class ---------------- Mutant | -10/Materials Mutant | -10/Mines Resources | -11 -10 -10 ----------- Run | Scr Mat Min Matter Collected 319 | 201 80 38 Remotely . | . . . Salvage Created 177 | . 89 88 Parts 10 | . 4 6 Haulers Intercepted . | . . . Recyclers Shooed . | . . . Parts Field Recycled . | . . . Retrieved Matter . | . . . Parts Self-Destructed . | . . . Prevented . | . . . Kills | -11 -10 -10 ------- Run | Scr Mat Min Combat Hostiles Destroyed 6 | . 2 4 Guns 3 | . 2 1 AOE 3 | . . 3 Classes Destroyed 4 | . 1 3 Builder 1 | . . 1 Recycler 1 | . . 1 Grunt 3 | . 2 1 Assembled 3 | . . 3 Best Kill Streak 6 | . 2 6 Combat Bots Only 4 | . 2 4 Max Kills in Single Turn 3 | . 1 3 Gunslinging . | . . . Exploded 2 | . . 2 Melee . | . . . Uniques/NPCs Destroyed . | . . . Combat | -11 -10 -10 -------- Run | Scr Mat Min Damage Taken 1017 | . 150 867 Core 256 | . 32 224 Absorbed by Shields . | . . . Core Remaining (%) 100 | 100 . . Volleys Fired 14 | . 7 7 Largest 2 | . 2 2 Hottest 70 | . 70 50 Shots Fired 28 | . 14 14 Gun 21 | . 14 7 Cannon . | . . . Launcher 7 | . . 7 Special . | . . . Kinetic 14 | . 7 7 Thermal 7 | . 7 . Explosive 7 | . . 7 Electromagnetic . | . . . Robot Hit Streak 8 | . 8 3 Robot Miss Streak 2 | . 2 1 Penetration Max . | . . . Secondary Targets 1 | . 1 . Max Gunslinging Chain 1 | . 1 . Shots Hit Robots 15 | . 11 4 Core Hits 23 | . 5 18 Critical Hits . | . . . Critical Kills . | . . . Critical Parts Destroyed . | . . . Melee Attacks . | . . . Impact . | . . . Slashing . | . . . Piercing . | . . . Sneak Attacks . | . . . Combat Hostiles . | . . . Follow-up Attacks . | . . . Damage Inflicted 487 | . 123 364 Guns 164 | . 123 41 Cannons . | . . . Explosions 318 | . . 318 Melee . | . . . Ramming 5 | . . 5 Kinetic 101 | . 60 41 Thermal 63 | . 63 . Explosive 318 | . . 318 Electromagnetic . | . . . Impact . | . . . Slashing . | . . . Piercing . | . . . Highest Corruption . | . . . Average Corruption . | . . . Corruption Purged . | . . . Overload Shots . | . . . Overflow Damage . | . . . Projectiles . | . . . Explosions . | . . . Melee . | . . . Knockbacks . | . . . Impact . | . . . Kinetic . | . . . Secondary . | . . . Self-Inflicted Damage 3 | . . 3 Shots 1 | . . 1 Rammed . | . . . Targets Rammed 1 | . . 1 Kicked 1 | . . 1 Crushed . | . . . Highest Temperature 141 | . 141 22 Average Temperature 47 | . 76 5 Received Heat Transfer 341 | . 84 257 Siege Activations . | . . . Robots Corrupted . | . . . Combat Hostiles . | . . . Parts Fried . | . . . Impact Corruptions . | . . . Robots Melted . | . . . Combat Hostiles . | . . . Parts Melted . | . . . Heat Transferred 185 | . 185 . Parts Sabotaged . | . . . Parts Stolen . | . . . Parts Stripped . | . . . Power Chain Reactions . | . . . Missiles Intercepted . | . . . Alert | -11 -10 -10 ------- Run | Scr Mat Min Peak Influence 55 | . 50 55 Average Influence 24 | . 35 11 Maximum Alert Level . | . . . Low Security (%) 100 | 100 100 100 Level 1 . | . . . Level 2 . | . . . Level 3 . | . . . Level 4 . | . . . Level 5 . | . . . High Security . | . . . Max Security . | . . . Squads Dispatched . | . . . Investigation . | . . . Extermination . | . . . Reinforcement . | . . . Assault . | . . . Garrison . | . . . Intercept . | . . . Construction Impeded . | . . . Haulers Reinforced . | . . . Stealth | -11 -10 -10 --------- Run | Scr Mat Min Distress Signals . | . . . Communications Jammed . | . . . Distress Signals . | . . . Times Spotted 29 | . 2 27 Peak Tracking Total 13 | . 2 13 Tactical Retreats 3 | . . 3 Traps | -11 -10 -10 ------- Run | Scr Mat Min Traps Triggered . | . . . Indirectly . | . . . Trap Hack Attempts . | . . . Triggered . | . . . Disarmed . | . . . Reprogrammed . | . . . Reused . | . . . Traps Extracted . | . . . Installed . | . . . Triggered . | . . . Machines | -11 -10 -10 ---------- Run | Scr Mat Min Machines Disabled . | . . . Max in Single Turn . | . . . Machines Sabotaged . | . . . Garrisons Compromised . | . . . Overloaded Fab Kills . | . . . Fab Network Shutdowns . | . . . Hacking | -11 -10 -10 --------- Run | Scr Mat Min Machines Accessed 1 | . 1 . Terminals . | . . . Fabricators . | . . . Repair Stations . | . . . Recycling Units 1 | . 1 . Scanalyzers . | . . . Garrison Access . | . . . Total Hacks 2 | . 2 . Successful 2 | . 2 . Failed . | . . . Catastrophic . | . . . Database Lockouts . | . . . Manual . | . . . Terminals . | . . . Fabricators . | . . . Repair Stations . | . . . Recycling Units 2 | . 2 . Scanalyzers . | . . . Garrison Access . | . . . Terminal Hacks . | . . . Fabricator Hacks . | . . . Repair Station Hacks . | . . . Recycling Unit Hacks 2 | . 2 . Report Inventory 1 | . 1 . Retrieve Components 1 | . 1 . Scanalyzer . | . . . Garrison Access Hacks . | . . . Unauthorized Hacks . | . . . Terminals . | . . . Fabricators . | . . . Repair Stations . | . . . Recycling Units . | . . . Scanalyzers . | . . . Garrison Access . | . . . Data Cores Recovered . | . . . Used . | . . . Hacking Detections . | . . . Full Trace Events . | . . . Feedback Events . | . . . Feedback Blocked . | . . . Robot Schematics Acquired . | . . . Robots Built . | . . . Matter . | . . . Time . | . . . Total Robot Build Rating . | . . . Part Schematics Acquired . | . . . Parts Built . | . . . Matter . | . . . Time . | . . . Total Part Build Rating . | . . . Parts Repaired . | . . . Time . | . . . Parts Recycled . | . . . Recycled Matter . | . . . Retrieved Matter . | . . . Retrieved Components 5 | . 5 . Parts Scanalyzed . | . . . Part Schematics Acquired . | . . . Parts Damaged . | . . . Bothacking | -11 -10 -10 ------------ Run | Scr Mat Min Used RIF Installer . | . . . Robots Hacked . | . . . Non-combat . | . . . Combat . | . . . Robot Hacks Applied . | . . . Relay Couplers Released . | . . . Robots Rewired . | . . . Allies Hacked . | . . . Hacks Repelled . | . . . Allies | -11 -10 -10 -------- Run | Scr Mat Min Total Allies . | . . . Largest Group . | . . . Highest-Rated Group . | . . . Highest-Rated Ally . | . . . Total Orders . | . . . Ally Attacks . | . . . Total Damage . | . . . Kills . | . . . Allies Corrupted . | . . . Allies Melted . | . . . Intel | -11 -10 -10 ------- Run | Scr Mat Min Robot Analysis Total . | . . . Derelict Logs Recovered . | . . . Drone Launches . | . . . Drone Recoveries . | . . . Exploration | -11 -10 -10 ------------- Run | Scr Mat Min Turns Passed 718 | 95 456 167 Spaces Moved 499 | 49 339 111 Core 35 | 35 . . Treads . | . . . Legs 464 | 14 339 111 Wheels . | . . . Hover . | . . . Flight . | . . . Fastest Speed 50 | 50 120 120 Average Speed 124 | 167 120 120 Slowest Speed 250 | 250 120 150 Overloaded Moves . | . . . Propulsion Burnouts . | . . . Robots Hopped . | . . . Cave-ins Triggered . | . . . Exploration Rate (%) 22 | 5 34 29 Regions Visited 2 Branch Regions 1 Pre-discovered Areas . | . . . Known Exits Taken . | . . . Unknown Exits Taken 2 | 1 1 . Scrap Searched . | . . . Spaces Dug . | . . . Terrain Destroyed 47 | . . 47 Melee . | . . . Projectile . | . . . AOE 47 | . . 47 Actions | -11 -10 -10 --------- Run | Scr Mat Min Total 565 | 58 376 131 Wait 17 | . 13 4 Move 497 | 48 338 111 Hop . | . . . Pick Up 12 | 4 7 1 Fast Attach 9 | 6 2 1 Attach 4 | . . 4 Detach 1 | . . 1 Swap 2 | . 2 . Drop 8 | . 7 1 Fire 14 | . 7 7 Melee . | . . . Ram . | . . . Kick 1 | . . 1 Crush . | . . . Escape Stasis . | . . . Rewire . | . . . Trap . | . . . Miscellaneous . | . . . Route ------- -11/Scrapyard -10/Materials -10/Mines History --------- Turn | Location | Event 14 | -11/Scrapyard | Discovered new exit (range 15) 96 | -11/Scrapyard | Entered Materials 310 | -10/Materials | Build established: Mutant 513 | -10/Materials | Discovered new exit (range 16) 552 | -10/Materials | Entered Mines 618 | -10/Mines | Assembled infested the area 623 | -10/Mines | Assisted by a Guerilla fighting off Assembled 684 | -10/Mines | Core integrity fell below 50% 695 | -10/Mines | Core integrity fell below 20% 719 | -10/Mines | Destroyed by as-96850 with Assembled Rifle Last Messages --------------- 00665_ R-06 Scavenger destroyed. 00665_ as-03131 destroyed. 00665_ U-05 Engineer destroyed. 00667_ as-07744 destroyed. 00668_ The unstable cave ceiling collapses. 00668_ as-13896 destroyed. 00668_ as-19276 destroyed. 00670_ Grenade Launcher destroyed. 00671_ Acquired 2 matter. 00672_ Assault Rifle severed. 00675_ The unstable cave ceiling collapses. 00676_ Acquired 23 matter. 00680_ The unstable cave ceiling collapses. 00684_ Kicked as-00397 out of the way. 00687_ The unstable cave ceiling collapses. 00690_ Aluminum Leg destroyed. 00706_ Med. Laser destroyed. 00707_ Lgt. Nuclear Core destroyed. 00707_ Acquired 13 matter. 00708_ Aluminum Leg destroyed. Map ----- +----------------------------------------------------+ | ??####?## ###?####### #???? | | ?## ## ###?????????### #???? | | ?# ##?????????????## ##???? | | ?# """ #????????????????##????? | | ?## """ #??????????????????????? | | ??# """ ##?????????????????????? | | ??# ###########???????????? | | ??# #???????????? | | ??# ########## #???????????? | | ??## #????????# #???????????? | | ???## #???????## #####???????? | | ????# #??????## # ######??? | | ????# ##?????## ! ##### | | ????## #??????##=%%** | [ %! | | ?????##???????#=*% !% | | ??????????????# %]* # | | ?????????????# #%= # | | ???????????????#%*## ##### | | ?????????????###= ?##???# ## | | ????????????? ???????# # | | ????????????? ???????## # # | | ????????????# ##????????# | | ?????####??## #?????????## ## ### | | ????## #### ????????### ####?? | | ????# ## ???????## #???? | | ????# a@## #?????### #???? | | ???## aa### #????## #???? | | ???# a### #????# ## #???? | | ??## " # #???## #### #???? | | ??# # ##### ##??# #???? | | # #??? #???? | | ### #?? ##???? | | ?# ## # ##????? | | ?## ### #?????? | | ??# #####?# #????? | | ??## ####?????######## #????? | | ???###?????????????????# ##????? | | ????????????????????????###?????? | | ????????????????????????????????? | | | | | | | | | | | | | | | | | | | | | | | +----------------------------------------------------+ Best States ------------- Heat Dissipation 25 Energy Generation 14 Energy Capacity 250 Matter Stores 300 Matter Capacity 300 Sight Range 16 Robot Scan Range 10 Terrain Scan Density 10 Evasion (%) 40 Item Schematics ----------------- None Robot Schematics ------------------ None Fabricated ------------ Nothing Alien Tech Used ----------------- None Achievements -------------- None Challenges ------------ None Game ------ Seed DiametricLinearConverter Manual? 0 Play Time 00:15:39 Cumulative 4.7 hours Start 2019.11.12 @ 21:12:09 End 2019.11.12 @ 21:26:26 Sessions 1 Manual Loads 0 Difficulty Rogue Special Mode None Game No. 9 Rogue 9 Adventurer 0 Explorer 0 Win Type - Total 0 Types 0/0/0/0/0/0/0 Lore% 2 Gallery% 8 Achievement% 7 Wizard Run 0 Options --------- ASCII 0 Keyboard 1 Movement Numpad Keybinds 0 Fullscreen 1 Font 18/SmallcapsGlow Map View 76x50 Tactical HUD 1 Map Filters NONE Filters NONE Steam 1 RUN: 3aeaa66e-6d79-4189-aa50-4c9ead87fff9